[Event "Titled Tuesday Blitz August 1 Early 2023"]
[White "Rodriguez Fontecha, Marcos"]
[Black "Ardelean, George-Catalin"]
[WhiteFideId "2256576"]
[BlackFideId "1207091"]
[WhiteElo "2401"]
[BlackElo "2712"]
[Result "1/2-1/2"]
[Round "1"]
[TimeControl "180+1"]
[Date "2023.08.01"]
[WhiteClock "0:00:17"]
[BlackClock "0:00:31"]
[Board "105"]

1. e4 {[%clk 0:02:58]}  d5 {[%clk 0:02:58]} 2. exd5 {[%clk 0:02:58]}  Qxd5 {[%clk 0:02:59]} 3. Nc3 {[%clk 0:02:58]}  Qd6 {[%clk 0:03:00]} 4. d4 {[%clk 0:02:56]}  c6 {[%clk 0:02:59]} 5. Nge2 {[%clk 0:02:55]}  Nf6 {[%clk 0:02:56]} 6. Bf4 {[%clk 0:02:55]}  Qd8 {[%clk 0:02:56]} 7. g3 {[%clk 0:02:53]}  Be6 {[%clk 0:02:55]} 8. Bg2 {[%clk 0:02:53]}  Nbd7 {[%clk 0:02:54]} 9. O-O {[%clk 0:02:51]}  Nb6 {[%clk 0:02:54]} 10. Be5 {[%clk 0:02:49]}  Nc4 {[%clk 0:02:53]} 11. Nf4 {[%clk 0:02:42]}  Bf5 {[%clk 0:02:45]} 12. b3 {[%clk 0:02:31]}  Nxe5 {[%clk 0:02:40]} 13. dxe5 {[%clk 0:02:32]}  Qxd1 {[%clk 0:02:37]} 14. Raxd1 {[%clk 0:02:30]}  Nd7 {[%clk 0:02:36]} 15. e6 {[%clk 0:02:25]}  fxe6 {[%clk 0:02:36]} 16. Rfe1 {[%clk 0:02:11]}  e5 {[%clk 0:02:34]} 17. Nd3 {[%clk 0:02:07]}  g6 {[%clk 0:02:34]} 18. Ne4 {[%clk 0:01:42]}  O-O-O {[%clk 0:02:25]} 19. a4 {[%clk 0:01:34]}  Bh6 {[%clk 0:02:24]} 20. a5 {[%clk 0:01:31]}  a6 {[%clk 0:02:24]} 21. Nb2 {[%clk 0:01:18]}  Nf6 {[%clk 0:02:19]} 22. Rxd8+ {[%clk 0:01:10]}  Rxd8 {[%clk 0:02:20]} 23. Nc4 {[%clk 0:01:07]}  Bxe4 {[%clk 0:01:58]} 24. Bxe4 {[%clk 0:01:06]}  Bd2 {[%clk 0:01:59]} 25. Re2 {[%clk 0:01:03]}  Bc3 {[%clk 0:01:57]} 26. Bd3 {[%clk 0:01:00]}  Rd5 {[%clk 0:01:52]} 27. Nb6+ {[%clk 0:01:00]}  Kc7 {[%clk 0:01:50]} 28. Nxd5+ {[%clk 0:01:00]}  cxd5 {[%clk 0:01:51]} 29. f3 {[%clk 0:00:53]}  Kd6 {[%clk 0:01:49]} 30. Kg2 {[%clk 0:00:49]}  Nd7 {[%clk 0:01:44]} 31. Rf2 {[%clk 0:00:48]}  Nc5 {[%clk 0:01:43]} 32. Rf1 {[%clk 0:00:46]}  Bxa5 {[%clk 0:01:42]} 33. h4 {[%clk 0:00:43]}  b5 {[%clk 0:01:18]} 34. h5 {[%clk 0:00:41]}  Nxd3 {[%clk 0:01:09]} 35. cxd3 {[%clk 0:00:42]}  Bc3 {[%clk 0:01:06]} 36. hxg6 {[%clk 0:00:28]}  hxg6 {[%clk 0:01:07]} 37. Rh1 {[%clk 0:00:29]}  Ke6 {[%clk 0:01:06]} 38. Rh6 {[%clk 0:00:27]}  Kf6 {[%clk 0:01:03]} 39. Rh8 {[%clk 0:00:27]}  a5 {[%clk 0:01:00]} 40. Ra8 {[%clk 0:00:27]}  e4 {[%clk 0:00:48]} 41. fxe4 {[%clk 0:00:25]}  dxe4 {[%clk 0:00:49]} 42. dxe4 {[%clk 0:00:26]}  Ke5 {[%clk 0:00:50]} 43. Kf3 {[%clk 0:00:25]}  Kd4 {[%clk 0:00:49]} 44. Rb8 {[%clk 0:00:23]}  Bb4 {[%clk 0:00:47]} 45. Rxb5 {[%clk 0:00:22]}  Kc3 {[%clk 0:00:48]} 46. Rg5 {[%clk 0:00:20]}  Kxb3 {[%clk 0:00:47]} 47. Rxg6 {[%clk 0:00:20]}  a4 {[%clk 0:00:47]} 48. Ra6 {[%clk 0:00:20]}  a3 {[%clk 0:00:48]} 49. Kf4 {[%clk 0:00:19]}  a2 {[%clk 0:00:45]} 50. Rxa2 {[%clk 0:00:19]}  Kxa2 {[%clk 0:00:45]} 51. Kf5 {[%clk 0:00:19]}  Kb3 {[%clk 0:00:38]} 52. Ke6 {[%clk 0:00:19]}  Kc4 {[%clk 0:00:34]} 53. g4 {[%clk 0:00:18]}  Kd4 {[%clk 0:00:31]} 54. g5 {[%clk 0:00:16]}  Kxe4 {[%clk 0:00:31]} 55. g6 {[%clk 0:00:16]}  Bc3 {[%clk 0:00:32]} 56. Kxe7 {[%clk 0:00:16]}  Kf5 {[%clk 0:00:32]} 57. Kf7 {[%clk 0:00:16]}  Be5 {[%clk 0:00:31]} 58. g7 {[%clk 0:00:17]}  Bxg7 {[%clk 0:00:31]} 1/2-1/2


[Site "https://www.chess.com"]

[Event "Titled Tuesday Blitz August 1 Early 2023"]
[White "Bazilius, Augustinas"]
[Black "Zhao, Jun"]
[WhiteFideId "12832251"]
[BlackFideId "8602522"]
[WhiteElo "2397"]
[BlackElo "2710"]
[Result "0-1"]
[Round "1"]
[TimeControl "180+1"]
[Date "2023.08.01"]
[WhiteClock "0:00:02"]
[BlackClock "0:00:10"]
[Board "107"]

1. d4 {[%clk 0:02:53]}  Nf6 {[%clk 0:02:57]} 2. c4 {[%clk 0:02:51]}  g6 {[%clk 0:02:57]} 3. Nc3 {[%clk 0:02:50]}  Bg7 {[%clk 0:02:57]} 4. e4 {[%clk 0:02:50]}  O-O {[%clk 0:02:56]} 5. h3 {[%clk 0:02:50]}  d6 {[%clk 0:02:56]} 6. Be3 {[%clk 0:02:51]}  a6 {[%clk 0:02:55]} 7. g4 {[%clk 0:02:42]}  c6 {[%clk 0:02:53]} 8. Bg2 {[%clk 0:02:39]}  b5 {[%clk 0:02:50]} 9. cxb5 {[%clk 0:02:09]}  axb5 {[%clk 0:02:49]} 10. e5 {[%clk 0:02:06]}  Nfd7 {[%clk 0:02:41]} 11. exd6 {[%clk 0:01:58]}  exd6 {[%clk 0:02:35]} 12. Nge2 {[%clk 0:01:58]}  d5 {[%clk 0:02:13]} 13. O-O {[%clk 0:01:55]}  Re8 {[%clk 0:02:05]} 14. Ng3 {[%clk 0:01:48]}  Nf8 {[%clk 0:02:03]} 15. Qd2 {[%clk 0:01:43]}  Nbd7 {[%clk 0:01:56]} 16. Rfe1 {[%clk 0:01:40]}  Ne6 {[%clk 0:01:50]} 17. f4 {[%clk 0:01:34]}  Nb6 {[%clk 0:01:37]} 18. b3 {[%clk 0:01:20]}  Qd6 {[%clk 0:01:37]} 19. Qf2 {[%clk 0:01:06]}  b4 {[%clk 0:01:33]} 20. Nce2 {[%clk 0:01:05]}  Ba6 {[%clk 0:01:33]} 21. f5 {[%clk 0:01:01]}  Nc7 {[%clk 0:01:25]} 22. Bf4 {[%clk 0:00:59]}  Qd7 {[%clk 0:01:25]} 23. h4 {[%clk 0:00:55]}  Bxe2 {[%clk 0:01:22]} 24. Nxe2 {[%clk 0:00:54]}  Nb5 {[%clk 0:01:22]} 25. h5 {[%clk 0:00:49]}  gxh5 {[%clk 0:01:11]} 26. Bg5 {[%clk 0:00:45]}  h6 {[%clk 0:00:57]} 27. Bh4 {[%clk 0:00:41]}  hxg4 {[%clk 0:00:35]} 28. f6 {[%clk 0:00:41]}  Bf8 {[%clk 0:00:36]} 29. Ng3 {[%clk 0:00:42]}  Rxe1+ {[%clk 0:00:34]} 30. Rxe1 {[%clk 0:00:43]}  Re8 {[%clk 0:00:34]} 31. Re5 {[%clk 0:00:32]}  Rxe5 {[%clk 0:00:15]} 32. dxe5 {[%clk 0:00:33]}  d4 {[%clk 0:00:16]} 33. Be4 {[%clk 0:00:23]}  d3 {[%clk 0:00:15]} 34. Qxb6 {[%clk 0:00:18]}  d2 {[%clk 0:00:14]} 35. Bc2 {[%clk 0:00:19]}  d1=Q+ {[%clk 0:00:14]} 36. Bxd1 {[%clk 0:00:19]}  Qxd1+ {[%clk 0:00:15]} 37. Kh2 {[%clk 0:00:08]}  Nd4 {[%clk 0:00:15]} 38. e6 {[%clk 0:00:03]}  Qd2+ {[%clk 0:00:14]} 39. Kg1 {[%clk 0:00:02]}  Nf3+ {[%clk 0:00:13]} 40. Kf1 {[%clk 0:00:03]}  Qe1+ {[%clk 0:00:09]} 41. Kg2 {[%clk 0:00:02]}  Nxh4+ {[%clk 0:00:10]} 42. Kh2 {[%clk 0:00:02]}  Qd2+ {[%clk 0:00:10]} 43. Kh1 {[%clk 0:00:02]}  Qg2# {[%clk 0:00:10]} 0-1


[Site "https://www.chess.com"]

[Event "Titled Tuesday Blitz August 1 Early 2023"]
[White "Oleksiyenko, Mykhaylo"]
[Black "Mika, Tomasz"]
[WhiteFideId "4152417"]
[BlackFideId "1132970"]
[WhiteElo "2709"]
[BlackElo "2396"]
[Result "1-0"]
[Round "1"]
[TimeControl "180+1"]
[Date "2023.08.01"]
[WhiteClock "0:00:25"]
[BlackClock "0:00:06"]
[Board "108"]

1. e4 {[%clk 0:02:58]}  c6 {[%clk 0:02:59]} 2. Nf3 {[%clk 0:02:58]}  d5 {[%clk 0:02:59]} 3. Nc3 {[%clk 0:02:59]}  Bg4 {[%clk 0:02:59]} 4. h3 {[%clk 0:02:58]}  Bxf3 {[%clk 0:02:59]} 5. Qxf3 {[%clk 0:02:59]}  Nf6 {[%clk 0:02:55]} 6. g3 {[%clk 0:02:59]}  dxe4 {[%clk 0:02:54]} 7. Nxe4 {[%clk 0:03:00]}  Nxe4 {[%clk 0:02:54]} 8. Qxe4 {[%clk 0:03:01]}  Qd5 {[%clk 0:02:54]} 9. d3 {[%clk 0:03:01]}  e6 {[%clk 0:02:50]} 10. Bg2 {[%clk 0:03:01]}  Nd7 {[%clk 0:02:45]} 11. O-O {[%clk 0:02:57]}  Qxe4 {[%clk 0:02:45]} 12. dxe4 {[%clk 0:02:57]}  Be7 {[%clk 0:02:37]} 13. a4 {[%clk 0:02:57]}  O-O-O {[%clk 0:02:21]} 14. a5 {[%clk 0:02:56]}  a6 {[%clk 0:02:21]} 15. c3 {[%clk 0:02:56]}  Nc5 {[%clk 0:02:17]} 16. Be3 {[%clk 0:02:44]}  Rd7 {[%clk 0:02:15]} 17. b4 {[%clk 0:02:40]}  Nd3 {[%clk 0:02:08]} 18. Rfd1 {[%clk 0:02:18]}  Bf6 {[%clk 0:02:02]} 19. Bf1 {[%clk 0:02:00]}  Ne5 {[%clk 0:01:43]} 20. f4 {[%clk 0:01:49]}  Rxd1 {[%clk 0:01:27]} 21. Rxd1 {[%clk 0:01:50]}  Nd7 {[%clk 0:01:27]} 22. e5 {[%clk 0:01:50]}  Bd8 {[%clk 0:01:19]} 23. Bg2 {[%clk 0:01:47]}  Bc7 {[%clk 0:01:18]} 24. h4 {[%clk 0:01:42]}  h5 {[%clk 0:01:13]} 25. c4 {[%clk 0:01:34]}  g6 {[%clk 0:01:09]} 26. b5 {[%clk 0:01:20]}  axb5 {[%clk 0:00:57]} 27. cxb5 {[%clk 0:01:20]}  cxb5 {[%clk 0:00:56]} 28. Bxb7+ {[%clk 0:01:19]}  Kxb7 {[%clk 0:00:57]} 29. Rxd7 {[%clk 0:01:19]}  Kc6 {[%clk 0:00:54]} 30. Rxf7 {[%clk 0:01:17]}  Bxa5 {[%clk 0:00:46]} 31. Rf6 {[%clk 0:01:13]}  Kd5 {[%clk 0:00:44]} 32. Rxg6 {[%clk 0:01:12]}  b4 {[%clk 0:00:38]} 33. Rg7 {[%clk 0:01:11]}  Rb8 {[%clk 0:00:37]} 34. Rd7+ {[%clk 0:01:01]}  Ke4 {[%clk 0:00:34]} 35. Kf2 {[%clk 0:01:01]}  Bb6 {[%clk 0:00:25]} 36. Bxb6 {[%clk 0:00:51]}  Rxb6 {[%clk 0:00:26]} 37. Rd6 {[%clk 0:00:51]}  Rb7 {[%clk 0:00:16]} 38. Rd2 {[%clk 0:00:39]}  b3 {[%clk 0:00:16]} 39. Rb2 {[%clk 0:00:40]}  Kd3 {[%clk 0:00:16]} 40. Kf3 {[%clk 0:00:38]}  Kc3 {[%clk 0:00:16]} 41. Rb1 {[%clk 0:00:39]}  b2 {[%clk 0:00:15]} 42. f5 {[%clk 0:00:31]}  exf5 {[%clk 0:00:15]} 43. Kf4 {[%clk 0:00:32]}  Rf7 {[%clk 0:00:09]} 44. e6 {[%clk 0:00:31]}  Rf8 {[%clk 0:00:09]} 45. Ke5 {[%clk 0:00:32]}  Kc2 {[%clk 0:00:09]} 46. Rf1 {[%clk 0:00:31]}  b1=Q {[%clk 0:00:09]} 47. Rxb1 {[%clk 0:00:31]}  Kxb1 {[%clk 0:00:09]} 48. e7 {[%clk 0:00:31]}  Rg8 {[%clk 0:00:08]} 49. Kxf5 {[%clk 0:00:31]}  Kc2 {[%clk 0:00:09]} 50. Kf6 {[%clk 0:00:29]}  Kd3 {[%clk 0:00:09]} 51. Kf7 {[%clk 0:00:29]}  Ra8 {[%clk 0:00:08]} 52. e8=Q {[%clk 0:00:21]}  Rxe8 {[%clk 0:00:08]} 53. Kxe8 {[%clk 0:00:21]}  Ke4 {[%clk 0:00:09]} 54. Kf7 {[%clk 0:00:22]}  Kf5 {[%clk 0:00:09]} 55. Kg7 {[%clk 0:00:22]}  Kg4 {[%clk 0:00:07]} 56. Kh6 {[%clk 0:00:23]}  Kxg3 {[%clk 0:00:07]} 57. Kxh5 {[%clk 0:00:24]}  Kf4 {[%clk 0:00:07]} 58. Kg6 {[%clk 0:00:24]}  Ke5 {[%clk 0:00:07]} 59. h5 {[%clk 0:00:25]}  Ke6 {[%clk 0:00:06]} 60. h6 {[%clk 0:00:25]} 1-0


[Site "https://www.chess.com"]

[Event "Titled Tuesday Blitz August 1 Early 2023"]
[White "Ilkhomi, Jaloliddin"]
[Black "Dishman, Stephen"]
[WhiteFideId "14700948"]
[BlackFideId "403024"]
[WhiteElo "2707"]
[BlackElo "2394"]
[Result "1-0"]
[Round "1"]
[TimeControl "180+1"]
[Date "2023.08.01"]
[WhiteClock "0:02:36"]
[BlackClock "0:00:54"]
[Board "110"]

1. Nf3 {[%clk 0:03:00]}  d5 {[%clk 0:02:59]} 2. d4 {[%clk 0:03:01]}  Nf6 {[%clk 0:02:56]} 3. Bf4 {[%clk 0:03:00]}  c5 {[%clk 0:02:56]} 4. e3 {[%clk 0:03:00]}  Nc6 {[%clk 0:02:56]} 5. c3 {[%clk 0:03:01]}  Qb6 {[%clk 0:02:55]} 6. Qc2 {[%clk 0:03:01]}  Bf5 {[%clk 0:02:49]} 7. dxc5 {[%clk 0:03:00]}  Bxc2 {[%clk 0:02:46]} 8. cxb6 {[%clk 0:03:01]}  Bxb1 {[%clk 0:02:34]} 9. Rxb1 {[%clk 0:03:02]}  axb6 {[%clk 0:02:34]} 10. a3 {[%clk 0:02:59]}  e6 {[%clk 0:02:31]} 11. Bb5 {[%clk 0:03:00]}  Be7 {[%clk 0:02:16]} 12. Ne5 {[%clk 0:03:00]}  Rc8 {[%clk 0:02:15]} 13. Nxc6 {[%clk 0:03:00]}  bxc6 {[%clk 0:02:14]} 14. Ba6 {[%clk 0:03:01]}  Kd7 {[%clk 0:01:55]} 15. Bxc8+ {[%clk 0:03:00]}  Rxc8 {[%clk 0:01:54]} 16. Bg5 {[%clk 0:03:01]}  h6 {[%clk 0:01:49]} 17. Bxf6 {[%clk 0:03:01]}  Bxf6 {[%clk 0:01:50]} 18. Kd2 {[%clk 0:03:01]}  Ra8 {[%clk 0:01:48]} 19. h4 {[%clk 0:03:01]}  Ra4 {[%clk 0:01:46]} 20. g3 {[%clk 0:02:55]}  h5 {[%clk 0:01:45]} 21. Rbg1 {[%clk 0:02:56]}  g6 {[%clk 0:01:43]} 22. f3 {[%clk 0:02:56]}  c5 {[%clk 0:01:41]} 23. g4 {[%clk 0:02:56]}  hxg4 {[%clk 0:01:40]} 24. Rxg4 {[%clk 0:02:55]}  d4 {[%clk 0:01:33]} 25. cxd4 {[%clk 0:02:53]}  cxd4 {[%clk 0:01:33]} 26. Kd3 {[%clk 0:02:52]}  e5 {[%clk 0:01:29]} 27. exd4 {[%clk 0:02:51]}  exd4 {[%clk 0:01:30]} 28. h5 {[%clk 0:02:51]}  g5 {[%clk 0:01:27]} 29. h6 {[%clk 0:02:50]}  Ke6 {[%clk 0:01:24]} 30. h7 {[%clk 0:02:51]}  Ra8 {[%clk 0:01:24]} 31. Rh6 {[%clk 0:02:46]}  Kf5 {[%clk 0:01:22]} 32. a4 {[%clk 0:02:40]}  Bg7 {[%clk 0:01:10]} 33. Rxb6 {[%clk 0:02:38]}  Rxa4 {[%clk 0:00:54]} 34. Rb8 {[%clk 0:02:36]} 1-0


[Site "https://www.chess.com"]

[Event "Titled Tuesday Blitz August 1 Early 2023"]
[White "Sokolovsky, Yahli"]
[Black "Namitbir Singh Walia"]
[WhiteFideId "2820242"]
[BlackFideId "35071068"]
[WhiteElo "2706"]
[BlackElo "2392"]
[Result "1-0"]
[Round "1"]
[TimeControl "180+1"]
[Date "2023.08.01"]
[WhiteClock "0:00:15"]
[BlackClock "0:00:15"]
[Board "112"]

1. b3 {[%clk 0:02:59]}  e5 {[%clk 0:02:59]} 2. Bb2 {[%clk 0:03:00]}  Nc6 {[%clk 0:02:59]} 3. e3 {[%clk 0:03:01]}  d6 {[%clk 0:02:56]} 4. d4 {[%clk 0:02:58]}  exd4 {[%clk 0:02:39]} 5. exd4 {[%clk 0:02:59]}  d5 {[%clk 0:02:40]} 6. Nf3 {[%clk 0:02:58]}  Bd6 {[%clk 0:02:40]} 7. Bb5 {[%clk 0:02:55]}  Nf6 {[%clk 0:02:40]} 8. O-O {[%clk 0:02:48]}  O-O {[%clk 0:02:40]} 9. c4 {[%clk 0:02:36]}  a6 {[%clk 0:02:31]} 10. Bxc6 {[%clk 0:02:35]}  bxc6 {[%clk 0:02:32]} 11. c5 {[%clk 0:02:35]}  Bf4 {[%clk 0:02:30]} 12. Bc1 {[%clk 0:02:33]}  Bxc1 {[%clk 0:02:26]} 13. Qxc1 {[%clk 0:02:34]}  a5 {[%clk 0:02:05]} 14. Ne5 {[%clk 0:02:34]}  Nd7 {[%clk 0:01:45]} 15. Nxc6 {[%clk 0:02:30]}  Qf6 {[%clk 0:01:45]} 16. Ne5 {[%clk 0:02:14]}  Nxe5 {[%clk 0:01:46]} 17. dxe5 {[%clk 0:02:15]}  Qxe5 {[%clk 0:01:46]} 18. Nd2 {[%clk 0:02:14]}  c6 {[%clk 0:01:39]} 19. Nf3 {[%clk 0:02:14]}  Qf6 {[%clk 0:01:40]} 20. Qd2 {[%clk 0:02:05]}  Bg4 {[%clk 0:01:40]} 21. Nd4 {[%clk 0:02:05]}  Bd7 {[%clk 0:01:28]} 22. Rfe1 {[%clk 0:02:05]}  Rfe8 {[%clk 0:01:27]} 23. Rad1 {[%clk 0:02:02]}  a4 {[%clk 0:01:21]} 24. Rxe8+ {[%clk 0:01:58]}  Bxe8 {[%clk 0:01:19]} 25. b4 {[%clk 0:01:58]}  a3 {[%clk 0:01:09]} 26. Re1 {[%clk 0:01:50]}  Bd7 {[%clk 0:01:08]} 27. f4 {[%clk 0:01:27]}  h6 {[%clk 0:01:08]} 28. Re5 {[%clk 0:01:27]}  Re8 {[%clk 0:01:07]} 29. Rxe8+ {[%clk 0:01:18]}  Bxe8 {[%clk 0:01:07]} 30. Qe3 {[%clk 0:01:12]}  Bd7 {[%clk 0:01:07]} 31. h3 {[%clk 0:00:57]}  Bf5 {[%clk 0:00:57]} 32. Kh2 {[%clk 0:00:31]}  Be4 {[%clk 0:00:55]} 33. b5 {[%clk 0:00:29]}  cxb5 {[%clk 0:00:51]} 34. c6 {[%clk 0:00:30]}  Qd6 {[%clk 0:00:47]} 35. Qc1 {[%clk 0:00:23]}  Qg6 {[%clk 0:00:08]} 36. g3 {[%clk 0:00:23]}  Bf5 {[%clk 0:00:08]} 37. Nxf5 {[%clk 0:00:10]}  Qxf5 {[%clk 0:00:08]} 38. c7 {[%clk 0:00:11]}  Qc8 {[%clk 0:00:07]} 39. Qc6 {[%clk 0:00:12]}  Kf8 {[%clk 0:00:07]} 40. Qc5+ {[%clk 0:00:06]}  Ke8 {[%clk 0:00:07]} 41. Qxb5+ {[%clk 0:00:07]}  Ke7 {[%clk 0:00:07]} 42. Qc5+ {[%clk 0:00:03]}  Ke6 {[%clk 0:00:06]} 43. Qc6+ {[%clk 0:00:03]}  Ke7 {[%clk 0:00:06]} 44. Kg2 {[%clk 0:00:03]}  d4 {[%clk 0:00:06]} 45. Kf3 {[%clk 0:00:03]}  d3 {[%clk 0:00:05]} 46. Ke3 {[%clk 0:00:04]}  Qd7 {[%clk 0:00:03]} 47. Qxd7+ {[%clk 0:00:03]}  Kxd7 {[%clk 0:00:03]} 48. Kxd3 {[%clk 0:00:04]}  Kxc7 {[%clk 0:00:04]} 49. Kc3 {[%clk 0:00:05]}  Kd6 {[%clk 0:00:05]} 50. Kb3 {[%clk 0:00:06]}  Kd5 {[%clk 0:00:06]} 51. Kxa3 {[%clk 0:00:07]}  Ke4 {[%clk 0:00:06]} 52. Kb4 {[%clk 0:00:07]}  Kf3 {[%clk 0:00:07]} 53. a4 {[%clk 0:00:08]}  Kxg3 {[%clk 0:00:08]} 54. a5 {[%clk 0:00:09]}  g5 {[%clk 0:00:08]} 55. fxg5 {[%clk 0:00:09]}  hxg5 {[%clk 0:00:09]} 56. a6 {[%clk 0:00:10]}  Kxh3 {[%clk 0:00:10]} 57. a7 {[%clk 0:00:11]}  g4 {[%clk 0:00:11]} 58. a8=Q {[%clk 0:00:12]}  g3 {[%clk 0:00:11]} 59. Qh1+ {[%clk 0:00:12]}  Kg4 {[%clk 0:00:12]} 60. Qe4+ {[%clk 0:00:12]}  Kh3 {[%clk 0:00:12]} 61. Qf5+ {[%clk 0:00:12]}  Kh2 {[%clk 0:00:12]} 62. Qxf7 {[%clk 0:00:13]}  g2 {[%clk 0:00:13]} 63. Qf2 {[%clk 0:00:13]}  Kh1 {[%clk 0:00:13]} 64. Qh4+ {[%clk 0:00:13]}  Kg1 {[%clk 0:00:14]} 65. Kc3 {[%clk 0:00:14]}  Kf1 {[%clk 0:00:14]} 66. Qf4+ {[%clk 0:00:15]}  Kg1 {[%clk 0:00:15]} 67. Kd3 {[%clk 0:00:14]}  Kh1 {[%clk 0:00:15]} 68. Qh4+ {[%clk 0:00:15]}  Kg1 {[%clk 0:00:15]} 69. Ke3 {[%clk 0:00:15]} 1-0


[Site "https://www.chess.com"]

[Event "Titled Tuesday Blitz August 1 Early 2023"]
[White "Gombocz, Ferenc Jr."]
[Black "Morefield, Jason"]
[WhiteFideId "775029"]
[BlackFideId "30920825"]
[WhiteElo "2391"]
[BlackElo "2705"]
[Result "0-1"]
[Round "1"]
[TimeControl "180+1"]
[Date "2023.08.01"]
[WhiteClock "0:00:15"]
[BlackClock "0:00:06"]
[Board "113"]

1. d4 {[%clk 0:03:00]}  d5 {[%clk 0:02:57]} 2. Nf3 {[%clk 0:03:01]}  Nf6 {[%clk 0:02:57]} 3. Bf4 {[%clk 0:03:00]}  c5 {[%clk 0:02:57]} 4. e3 {[%clk 0:03:00]}  Nc6 {[%clk 0:02:56]} 5. Nbd2 {[%clk 0:02:58]}  Qb6 {[%clk 0:02:56]} 6. dxc5 {[%clk 0:02:58]}  Qxb2 {[%clk 0:02:56]} 7. Rb1 {[%clk 0:02:57]}  Qc3 {[%clk 0:02:57]} 8. Bb5 {[%clk 0:02:58]}  g6 {[%clk 0:02:57]} 9. e4 {[%clk 0:02:55]}  dxe4 {[%clk 0:02:55]} 10. Be5 {[%clk 0:02:54]}  Qa5 {[%clk 0:02:55]} 11. O-O {[%clk 0:02:44]}  exf3 {[%clk 0:02:55]} 12. Bxc6+ {[%clk 0:02:20]}  bxc6 {[%clk 0:02:52]} 13. Qxf3 {[%clk 0:02:20]}  Nd5 {[%clk 0:02:52]} 14. Bxh8 {[%clk 0:02:18]}  Qxd2 {[%clk 0:02:50]} 15. c4 {[%clk 0:02:13]}  f6 {[%clk 0:02:41]} 16. Rfd1 {[%clk 0:02:08]}  Qc3 {[%clk 0:02:39]} 17. cxd5 {[%clk 0:02:01]}  Qxf3 {[%clk 0:02:37]} 18. gxf3 {[%clk 0:02:01]}  Bf5 {[%clk 0:02:35]} 19. Rb7 {[%clk 0:01:55]}  O-O-O {[%clk 0:02:35]} 20. Rxa7 {[%clk 0:01:47]}  Kb8 {[%clk 0:02:35]} 21. Ra6 {[%clk 0:01:42]}  cxd5 {[%clk 0:02:29]} 22. Rd4 {[%clk 0:01:29]}  Kc7 {[%clk 0:02:12]} 23. Rb4 {[%clk 0:00:40]}  d4 {[%clk 0:01:54]} 24. Rbb6 {[%clk 0:00:34]}  d3 {[%clk 0:01:40]} 25. Ra7+ {[%clk 0:00:31]}  Kc8 {[%clk 0:01:35]} 26. Ra8+ {[%clk 0:00:25]}  Kc7 {[%clk 0:01:35]} 27. Ra7+ {[%clk 0:00:24]}  Kc8 {[%clk 0:01:34]} 28. Ra8+ {[%clk 0:00:25]}  Kd7 {[%clk 0:01:11]} 29. c6+ {[%clk 0:00:20]}  Ke8 {[%clk 0:00:55]} 30. Rbb8 {[%clk 0:00:20]}  Rxb8 {[%clk 0:00:45]} 31. Rxb8+ {[%clk 0:00:21]}  Kf7 {[%clk 0:00:45]} 32. c7 {[%clk 0:00:21]}  d2 {[%clk 0:00:33]} 33. Rd8 {[%clk 0:00:20]}  Bh6 {[%clk 0:00:31]} 34. Kf1 {[%clk 0:00:19]}  Bf4 {[%clk 0:00:25]} 35. Ke2 {[%clk 0:00:18]}  Bxc7 {[%clk 0:00:19]} 36. Rxd2 {[%clk 0:00:19]}  Bxh2 {[%clk 0:00:17]} 37. Rb2 {[%clk 0:00:17]}  Be5 {[%clk 0:00:14]} 38. Rb6 {[%clk 0:00:15]}  h5 {[%clk 0:00:14]} 39. a4 {[%clk 0:00:12]}  h4 {[%clk 0:00:12]} 40. Rc6 {[%clk 0:00:13]}  h3 {[%clk 0:00:11]} 41. Rc1 {[%clk 0:00:13]}  h2 {[%clk 0:00:07]} 42. Ke3 {[%clk 0:00:13]}  g5 {[%clk 0:00:07]} 43. Rh1 {[%clk 0:00:13]}  Bh3 {[%clk 0:00:06]} 44. f4 {[%clk 0:00:12]}  Bxf4+ {[%clk 0:00:06]} 45. Kf3 {[%clk 0:00:13]}  e5 {[%clk 0:00:04]} 46. a5 {[%clk 0:00:13]}  g4+ {[%clk 0:00:04]} 47. Ke2 {[%clk 0:00:13]}  Bg2 {[%clk 0:00:05]} 48. Rxh2 {[%clk 0:00:13]}  Bxh2 {[%clk 0:00:05]} 49. a6 {[%clk 0:00:13]}  Ba8 {[%clk 0:00:06]} 50. a7 {[%clk 0:00:14]}  g3 {[%clk 0:00:05]} 51. Ke3 {[%clk 0:00:15]}  g2 {[%clk 0:00:05]} 52. Ke2 {[%clk 0:00:15]}  g1=Q {[%clk 0:00:06]} 53. Ke3 {[%clk 0:00:15]}  Qg4 {[%clk 0:00:06]} 0-1


[Site "https://www.chess.com"]